fUST/lending_fUST_20250302
["ID","MTS","AMOUNT","RATE_DAILY","PERIOD"]
[354967619,1740849051195,-500.0,0.0002757,2]
[354967620,1740849051206,-5490.16,0.0002757,2]
[354967621,1740849051217,-500.0,0.0002757,2]
[354967622,1740849051227,-500.0,0.0002757,2]
[354967623,1740849051237,-500.0,0.00027573,5]
[354967624,1740849051247,-500.0,0.00027573,5]
[354967625,1740849051257,-500.0,0.00027573,5]
[354967626,1740849051268,-500.0,0.00027573,5]
[354967627,1740849051278,-420.0,0.00027587,2]
[354967628,1740849051288,-151.0,0.000276,16]
[354967629,1740849051298,-151.0,0.000276,17]
[354967630,1740849051308,-1029.59,0.00027669,2]
[354967631,1740849051319,-500.0,0.0002767,2]
[354967632,1740849051329,-500.0,0.0002767,2]
[354967633,1740849051339,-500.0,0.0002767,2]
[354967634,1740849051350,-500.0,0.0002767,2]
[354967635,1740849051360,-1087.15,0.0002767,2]
[354967636,1740849051370,-500.0,0.0002767,2]
[354967637,1740849051380,-500.0,0.0002767,2]
[354967638,1740849051390,-500.0,0.0002767,2]
[354967639,1740849051400,-650.99,0.0002767,2]
[354967640,1740849051411,-500.0,0.0002767,2]
[354967641,1740849051421,-500.0,0.0002767,2]
[354967642,1740849051432,-500.0,0.0002767,2]
[354967643,1740849051443,-500.0,0.0002767,2]
[354967644,1740849051453,-571.33,0.0002767,2]
[354967645,1740849051464,-563.95,0.0002767,2]
[354967646,1740849051474,-500.0,0.0002767,2]
[354967647,1740849051485,-851.64,0.0002767,2]
[354967648,1740849051496,-500.0,0.0002767,2]
[354967649,1740849051507,-845.48,0.0002767,2]
[354967650,1740849051518,-500.0,0.0002767,2]
[354967651,1740849051528,-574.61,0.0002767,2]
[354967652,1740849051539,-500.0,0.0002767,2]
[354967653,1740849051550,-500.0,0.0002767,2]
[354967654,1740849051561,-500.0,0.0002767,2]
[354967655,1740849051572,-500.0,0.0002767,2]
[354967656,1740849051582,-277.50860659,0.0002767,2]
[354967657,1740849051593,-1693.34,0.0002767,2]
[354967658,1740849051604,-500.0,0.0002767,2]
[354967659,1740849051616,-500.0,0.0002767,2]
[354967660,1740849051627,-1788.29,0.0002767,2]
[354967661,1740849051638,-500.0,0.0002767,2]
[354967662,1740849051649,-887.67,0.0002767,2]
[354967663,1740849051659,-500.0,0.0002767,2]
[354967664,1740849051670,-500.0,0.0002767,2]
[354967665,1740849051682,-500.0,0.0002767,2]
[354967666,1740849051693,-500.0,0.0002767,2]
[354967667,1740849051703,-500.0,0.0002767,2]
[354967668,1740849051715,-2176.97,0.0002767,2]
[354967669,1740849051726,-780.7,0.0002767,2]
[354967670,1740849051737,-500.0,0.0002767,2]
[354967671,1740849051747,-500.0,0.0002767,2]
[354967672,1740849051758,-500.0,0.0002767,2]
[354967673,1740849051768,-500.0,0.0002767,2]
[354967674,1740849051778,-1202.51,0.0002767,2]
[354967675,1740849051788,-500.0,0.0002767,2]
[354967676,1740849051798,-584.51,0.0002767,2]
[354967677,1740849051808,-500.0,0.0002767,2]
[354967678,1740849051818,-500.0,0.0002767,2]
[354967679,1740849051828,-500.0,0.0002767,2]
[354967680,1740849051839,-689.6,0.0002767,2]
[354967681,1740849051850,-500.0,0.0002767,2]
[354967682,1740849051860,-736.89,0.0002767,2]
[354967683,1740849051870,-500.0,0.0002767,2]
[354967684,1740849051881,-500.0,0.0002767,2]
[354967685,1740849051891,-500.0,0.0002767,2]
[354967686,1740849051901,-500.0,0.0002767,2]
[354967687,1740849051912,-1311.99,0.0002767,2]
[354967688,1740849051923,-500.0,0.0002767,2]
[354967689,1740849051933,-891.18,0.0002767,2]
[354967690,1740849051944,-500.0,0.0002767,2]
[354967691,1740849051954,-646.85,0.0002767,2]
[354967692,1740849051965,-1341.14,0.0002767,2]
[354967693,1740849051975,-1201.42,0.0002767,2]
[354967694,1740849051985,-221.42438152,0.0002767,2]
[354967695,1740849051995,-1709.5,0.0002767,2]
[354967696,1740849052005,-500.0,0.0002767,2]
[354967697,1740849052016,-1261.45,0.0002767,2]
[354967698,1740849052026,-500.0,0.0002767,2]
[354967699,1740849052038,-508.05,0.0002767,2]
[354967700,1740849052050,-634.4,0.0002767,2]
[354967701,1740849052060,-500.0,0.0002767,2]
[354967702,1740849052070,-500.0,0.0002767,2]
[354967703,1740849052080,-500.0,0.0002767,2]
[354967704,1740849052091,-780.96,0.0002767,2]
[354967705,1740849052101,-500.0,0.0002767,2]
[354967706,1740849052113,-500.0,0.0002767,2]
[354967707,1740849052123,-541.51,0.0002767,2]
[354967708,1740849052133,-500.0,0.0002767,2]
[354967709,1740849052144,-1944.19,0.0002767,2]
[354967710,1740849052155,-500.0,0.0002767,2]
[354967711,1740849052166,-700.47,0.0002767,2]
[354967712,1740849052176,-500.0,0.0002767,2]
[354967713,1740849052191,-500.0,0.0002767,2]
[354967714,1740849052201,-1403.45,0.0002767,2]
[354967715,1740849052212,-500.0,0.0002767,2]
[354967716,1740849052222,-785.18,0.0002767,2]
[354967717,1740849052232,-1385.65,0.0002767,2]
[354967718,1740849052243,-500.0,0.0002767,2]
[354967719,1740849052254,-606.92,0.0002767,2]
[354967720,1740849052264,-3653.9,0.0002767,2]
[354967721,1740849052275,-1204.33,0.0002767,2]
[354967722,1740849052286,-500.0,0.0002767,2]
[354967723,1740849052297,-500.0,0.0002767,2]
[354967724,1740849052308,-2060.02,0.0002767,2]
[354967725,1740849052318,-500.0,0.0002767,2]
[354967726,1740849052330,-1023.91,0.0002767,2]
[354967727,1740849052340,-602.9,0.0002767,2]
[354967728,1740849052350,-1659.53,0.0002767,2]
[354967729,1740849052361,-500.0,0.0002767,2]
[354967730,1740849052372,-900.14,0.0002767,2]
[354967731,1740849052383,-1333.85,0.0002767,2]
[354967732,1740849052394,-1223.36,0.0002767,2]
[354967733,1740849052405,-515.19,0.0002767,2]
[354967734,1740849052416,-573.3,0.0002767,2]
[354967735,1740849052427,-613.79,0.0002767,2]
[354967736,1740849052438,-599.19,0.0002767,2]
[354967737,1740849052448,-1324.47,0.0002767,2]
[354967738,1740849052459,-533.78,0.0002767,2]
[354967739,1740849052470,-500.0,0.0002767,2]
[354967740,1740849052480,-556.87,0.0002767,2]
[354967741,1740849052490,-607.58,0.0002767,2]
[354967742,1740849052502,-748.72,0.0002767,2]
[354967743,1740849052512,-500.0,0.0002767,2]
[354967744,1740849052523,-500.0,0.0002767,2]
[354967745,1740849052534,-510.95,0.0002767,2]
[354967746,1740849052545,-16180.88,0.0002767,2]
[354967747,1740849052555,-500.0,0.0002767,2]
[354967748,1740849052570,-1183.61,0.0002767,2]
[354967749,1740849052581,-668.56,0.0002767,2]
[354967750,1740849052592,-644.97,0.0002767,2]
[354967751,1740849052603,-571.58,0.0002767,2]
[354967752,1740849052613,-139.7064835,0.0002767,2]
[354967753,1740849053174,-500.0,0.00026025,2]
[354967754,1740849053185,-1931.7835165,0.0002767,2]
[354967755,1740849053195,-500.0,0.0002767,2]
[354967756,1740849053205,-5.8333105,0.0002767,2]
[354967757,1740849054405,-500.0,0.00025751,2]
[354967758,1740849054415,-500.0,0.00025751,2]
[354967759,1740849054425,-500.0,0.00026025,2]
[354967760,1740849054436,-500.0,0.00026299,2]
[354967761,1740849054445,-500.0,0.00026573,2]
[354967762,1740849054456,-500.0,0.00026574,2]
[354967763,1740849054465,-500.0,0.00026574,2]
[354967764,1740849054474,-500.0,0.00026574,2]
[354967765,1740849054484,-500.0,0.00026574,2]
[354967766,1740849054492,-499.47402109,0.00026847,2]
[354967767,1740849054502,-500.0,0.00026848,2]
[354967768,1740849054511,-500.0,0.00027122,2]
[354967769,1740849054521,-500.0,0.00027296,2]
[354967770,1740849054531,-500.0,0.0002757,2]
[354967771,1740849054541,-494.1666895,0.0002767,2]
[354967772,1740849054551,-5233.65251531,0.0002767,2]
[354967773,1740849377991,30000.0,0.00025,10]
[354967774,1740849396567,30000.0,0.00025,10]
[354967775,1740849406209,4391.32158909,0.00025,10]
[354967776,1740849406238,25608.67841091,0.00025,10]
[354967777,1740849420108,19868.78731359,0.00025,10]
[354967778,1740849760672,-175.33985521,0.00023219,5]
[354967779,1740849761201,-300.0,0.0002428,2]
[354967780,1740849761229,-10000.0,0.00024281,2]
[354967781,1740849761257,-1012.101498,0.00024363,2]
[354967782,1740849761286,-203.0816571,0.00024454,2]
[354967783,1740849761316,-169.870073,0.00024522,2]
[354967784,1740849761345,-166.66666666,0.00024557,2]
[354967785,1740849761373,-899.18052641,0.0002537,2]
[354967786,1740849761399,-167.22,0.00025478,2]
[354967787,1740849761427,-2245.17808955,0.00025651,2]
[354967788,1740849761454,-339.2966758,0.00025651,2]
[354967789,1740849761481,-7851.02,0.0002575,2]
[354967790,1740849761509,-500.0,0.0002575,2]
[354967791,1740849761537,-2201.95,0.0002575,2]
[354967792,1740849761566,-500.0,0.0002575,2]
[354967793,1740849761595,-1000.0,0.0002575,5]
[354967794,1740849761623,-500.0,0.0002575,2]
[354967795,1740849761651,-500.0,0.0002575,2]
[354967796,1740849761680,-500.0,0.0002575,2]
[354967797,1740849761709,-500.71,0.0002575,2]
[354967798,1740849761737,-777.04,0.0002575,2]
[354967799,1740849761765,-773.92,0.0002575,2]
[354967800,1740849761793,-500.0,0.0002575,2]
[354967801,1740849761822,-500.0,0.0002575,2]
[354967802,1740849761850,-731.95,0.0002575,2]
[354967803,1740849761878,-500.0,0.0002575,2]
[354967804,1740849761906,-1548.02,0.0002575,2]
[354967805,1740849761934,-1563.09,0.0002575,2]
[354967806,1740849761961,-500.0,0.0002575,2]
[354967807,1740849761988,-500.0,0.0002575,2]
[354967808,1740849762017,-411.28027096,0.0002575,2]
[354967809,1740849762045,-457.42589303,0.0002575,2]
[354967810,1740849762073,-2435.93,0.0002575,2]
[354967811,1740849762102,-1843.39,0.00025751,2]
[354967812,1740849762131,-500.0,0.00025751,2]
[354967813,1740849762160,-1003.69,0.00025751,2]
[354967814,1740849762188,-500.0,0.00025751,2]
[354967815,1740849762216,-500.0,0.00025751,2]
[354967816,1740849762244,-500.0,0.00025751,2]
[354967817,1740849762273,-1242.97,0.00025751,2]
[354967818,1740849762306,-500.0,0.00025751,2]
[354967819,1740849762334,-576.16,0.00025751,2]
[354967820,1740849762362,-500.0,0.00025751,2]
[354967821,1740849762390,-1051.45,0.00025751,2]
[354967822,1740849762417,-500.0,0.00025751,2]
[354967823,1740849762445,-500.0,0.00025751,2]
[354967824,1740849762473,-1539.15,0.00025751,2]
[354967825,1740849762502,-500.0,0.00025751,2]
[354967826,1740849762530,-598.98129831,0.00025751,2]
[354967827,1740849762556,-500.0,0.00025751,2]
[354967828,1740849762583,-500.0,0.00025751,2]
[354967829,1740849762611,-500.0,0.00025751,2]
[354967830,1740849762640,-500.0,0.00025751,2]
[354967831,1740849762669,-860.66,0.00025751,2]
[354967832,1740849762696,-500.0,0.00025751,2]
[354967833,1740849762724,-500.0,0.00025751,2]
[354967834,1740849762752,-500.0,0.00025751,2]
[354967835,1740849762780,-500.0,0.00025751,2]
[354967836,1740849762810,-500.0,0.00025751,2]
[354967837,1740849762837,-500.0,0.00025751,2]
[354967838,1740849762866,-500.0,0.00025751,2]
[354967839,1740849762894,-500.0,0.00025751,2]
[354967840,1740849762922,-500.0,0.00025751,2]
[354967841,1740849762950,-796.63,0.00025751,2]
[354967842,1740849762977,-511.2011299,0.00025751,2]
[354967843,1740849763005,-500.0,0.00025751,2]
[354967844,1740849763032,-500.0,0.00025751,2]
[354967845,1740849763062,-500.0,0.00025751,2]
[354967846,1740849763090,-1157.13,0.00025751,2]
[354967847,1740849763119,-500.0,0.00025751,2]
[354967848,1740849763147,-500.0,0.00025751,2]
[354967849,1740849763176,-529.28,0.00025751,2]
[354967850,1740849763204,-500.0,0.00025751,2]
[354967851,1740849763234,-500.0,0.00025751,2]
[354967852,1740849763262,-500.0,0.00025751,2]
[354967853,1740849763293,-500.0,0.00025751,2]
[354967854,1740849763321,-500.0,0.00025751,2]
[354967855,1740849763350,-1005.71,0.00025751,2]
[354967856,1740849763378,-1639.93,0.00025751,2]
[354967857,1740849763406,-500.0,0.00025751,2]
[354967858,1740849763435,-500.0,0.00025751,2]
[354967859,1740849763464,-500.0,0.00025751,2]
[354967860,1740849763494,-500.0,0.00025751,2]
[354967861,1740849763523,-500.0,0.00025751,2]
[354967862,1740849763554,-500.0,0.00025751,2]
[354967863,1740849763584,-500.0,0.00025751,2]
[354967864,1740849763613,-503.57156651,0.00025751,2]
[354967865,1740849763643,-607.22,0.00025751,2]
[354967866,1740849763671,-500.0,0.00025751,2]
[354967867,1740849763700,-500.0,0.00025751,2]
[354967868,1740849763730,-500.0,0.00025751,2]
[354967869,1740849763758,-500.0,0.00025751,2]
[354967870,1740849763787,-500.0,0.00025751,2]
[354967871,1740849763816,-500.0,0.00025751,2]
[354967872,1740849763843,-500.0,0.00025751,2]
[354967873,1740849764159,-500.0,0.00025751,2]
[354967874,1740849764192,-500.0,0.00025751,2]
[354967875,1740849764223,-968.5,0.00025751,2]
[354967876,1740849764252,-500.0,0.00025751,2]
[354967877,1740849764284,-500.0,0.00025751,2]
[354967878,1740849764317,-500.0,0.00025751,2]
[354967879,1740849764350,-500.0,0.00025751,2]
[354967880,1740849764381,-500.0,0.00025751,2]
[354967881,1740849764410,-515.7,0.00025751,2]
[354967882,1740849764439,-500.0,0.00025751,2]
[354967883,1740849764467,-1048.54,0.00025751,2]
[354967884,1740849764496,-500.0,0.00025751,2]
[354967885,1740849764524,-598.20576571,0.00025751,2]
[354967886,1740849764555,-500.0,0.00025751,2]
[354967887,1740849764585,-500.0,0.00025751,2]
[354967888,1740849764615,-500.0,0.00025751,2]
[354967889,1740849764643,-738.07,0.00025751,2]
[354967890,1740849764679,-500.0,0.00025751,2]
[354967891,1740849764712,-500.0,0.00025751,2]
[354967892,1740849764743,-905.94,0.00025751,2]
[354967893,1740849764774,-500.0,0.00025751,2]
[354967894,1740849764804,-500.0,0.00025751,2]
[354967895,1740849764834,-500.0,0.00025751,2]
[354967896,1740849764865,-500.0,0.00025751,2]
[354967897,1740849764896,-787.84,0.00025751,2]
[354967898,1740849764926,-500.0,0.00025751,2]
[354967899,1740849764957,-500.0,0.00025751,2]
[354967900,1740849764986,-1046.13,0.00025751,2]
[354967901,1740849765017,-500.0,0.00025751,2]
[354967902,1740849765053,-509.55,0.00025751,2]
[354967903,1740849765083,-500.0,0.00025751,2]
[354967904,1740849765113,-1456.27,0.00025751,2]
[354967905,1740849765144,-500.0,0.00025751,2]
[354967906,1740849765173,-514.43,0.00025751,2]
[354967907,1740849765204,-500.0,0.00025751,2]
[354967908,1740849765233,-500.0,0.00025751,2]
[354967909,1740849765263,-1109.92,0.00025751,2]
[354967910,1740849765298,-618.06,0.00025751,2]
[354967911,1740849765327,-503.01725698,0.00025751,2]
[354967912,1740849765357,-500.0,0.00025751,2]
[354967913,1740849765386,-983.63,0.00025751,2]
[354967914,1740849765411,-175.33985521,0.00025751,2]
[354967915,1740849765429,-300.0,0.00025751,2]
[354967916,1740849765512,-37.50493956,0.00025751,2]
[354967917,1740849765522,-500.0,0.00025751,2]
[354967918,1740849765532,-787.3,0.00025751,2]
[354967919,1740849765542,-522.97449634,0.00025751,2]
[354967920,1740849765552,-8152.2205641,0.00025751,2]
[354967921,1740849765569,-1012.101498,0.00025751,2]
[354967922,1740849765581,-203.0816571,0.00025751,2]
[354967923,1740849765593,-169.870073,0.00025751,2]
[354967924,1740849765610,-166.66666666,0.00025751,2]
[354967925,1740849765623,-103.18954114,0.00025751,2]
[354967926,1740849765633,-500.0,0.00025751,2]
[354967927,1740849765644,-295.99098527,0.00025751,2]
[354967928,1740849765665,-167.22,0.00025751,2]
[354967929,1740849765687,-36.78901473,0.00025751,2]
[354967930,1740849765697,-500.0,0.00025751,2]
[354967931,1740849765707,-500.0,0.00025751,2]
[354967932,1740849765717,-565.76,0.00025751,2]
[354967933,1740849765727,-642.62907482,0.00025751,2]
[354967934,1740849765739,-267.44092518,0.00025751,2]
[354967935,1740849765750,-71.85575062,0.00025751,2]
[354967936,1740849765767,-2089.29424938,0.00025751,2]
[354967937,1740849765777,-500.0,0.00025751,2]
[354967938,1740849765787,-780.24,0.00025751,2]
[354967939,1740849765797,-500.0,0.00025751,2]
[354967940,1740849765807,-500.0,0.00025751,2]
[354967941,1740849765817,-500.0,0.00025751,2]
[354967942,1740849765826,-500.0,0.00025751,2]
[354967943,1740849765836,-1448.5,0.00025751,2]
[354967944,1740849765845,-997.95,0.00025751,2]
[354967945,1740849765855,-35.03575062,0.00025751,2]
[354967946,1740849765867,-464.96424938,0.00025751,2]
[354967947,1740849765876,-35.03575062,0.00025751,2]
[354967948,1740849765889,-464.96424938,0.00025751,2]
[354967949,1740849765899,-500.0,0.00025751,2]
[354967950,1740849765908,-500.0,0.00025751,2]
[354967951,1740849765918,-500.0,0.00025751,2]
[354967952,1740849765928,-236.98575062,0.00025751,2]
[354967953,1740849765944,-263.01424938,0.00025751,2]
[354967954,1740849765954,-236.98575062,0.00025751,2]
[354967955,1740849765971,-263.01424938,0.00025751,2]
[354967956,1740849765981,-736.98575062,0.00025751,2]
[354967957,1740849765992,-500.0,0.00025751,2]
[354967958,1740849766012,-500.0,0.00025751,2]
[354967959,1740849766029,-500.0,0.00025751,2]
[354967960,1740849766046,-500.71,0.00025751,2]
[354967961,1740849766057,-777.04,0.00025751,2]
[354967962,1740849766069,-773.92,0.00025751,2]
[354967963,1740849766085,-500.0,0.00025751,2]
[354967964,1740849766097,-500.0,0.00025751,2]
[354967965,1740849766110,-731.95,0.00025751,2]
[354967966,1740849766127,-500.0,0.00025751,2]
[354967967,1740849766143,-1548.02,0.00025751,2]
[354967968,1740849766164,-1563.09,0.00025751,2]
[354967969,1740849766177,-500.0,0.00025751,2]
[354967970,1740849766188,-500.0,0.00025751,2]
[354967971,1740849766200,-411.28027096,0.00025751,2]
[354967972,1740849766216,-457.42589303,0.00025751,2]
[354967973,1740849766229,-6.23808539,0.00025751,2]
[354967974,1740849766239,-1057.54,0.00025751,2]
[354967975,1740849766249,-500.0,0.00025751,2]
[354967976,1740849766259,-500.0,0.00025751,2]
[354967977,1740849766281,-372.15191461,0.00025751,2]
[354967978,1740849766298,-127.84808539,0.00025751,2]
[354967979,1740849766309,-233.18462087,0.00025751,2]
[354967980,1740849766320,-500.0,0.00025751,2]
[354967981,1740849766330,-500.0,0.00025751,2]
[354967982,1740849766341,-482.35729374,0.00025751,2]
[354967983,1740849766358,-17.64270626,0.00025751,2]
[354967984,1740849766369,-482.35729374,0.00025751,2]
[354967985,1740849766387,-39.68696622,0.00025751,2]
[354967986,1740849766400,-500.0,0.00025751,2]
[354967987,1740849766410,-464.00303378,0.00025751,2]
[354967988,1740849766427,-60.73358198,0.00025751,2]
[354967989,1740849766438,-439.26641802,0.00025751,2]
[354967990,1740849766451,-500.0,0.00025751,2]
[354967991,1740849766463,-500.0,0.00025751,2]
[354967992,1740849766606,-115.39358198,0.00025751,2]
[354967993,1740849766618,-1127.57641802,0.00025751,2]
[354967994,1740849766631,-500.0,0.00025751,2]
[354967995,1740849766643,-576.16,0.00025751,2]
[354967996,1740849766654,-500.0,0.00025751,2]
[354967997,1740849766674,-1051.45,0.00025751,2]
[354967998,1740849766686,-500.0,0.00025751,2]
[354967999,1740849766702,-500.0,0.00025751,2]
[354968000,1740849766717,-1359.54358198,0.00025751,2]
[354968001,1740849766727,-179.60641802,0.00025751,2]
[354968002,1740849766746,-500.0,0.00025751,2]
[354968003,1740849766758,-51.49358198,0.00025751,2]
[354968004,1740849766768,-500.0,0.00025751,2]
[354968005,1740849766778,-47.48771633,0.00025751,2]
[354968006,1740849766794,-452.51228367,0.00025751,2]
[354968007,1740849766804,-47.48771633,0.00025751,2]
[354968008,1740849766816,-452.51228367,0.00025751,2]
[354968009,1740849766825,-47.48771633,0.00025751,2]
[354968010,1740849766837,-500.0,0.00025751,2]
[354968011,1740849766848,-500.0,0.00025751,2]
[354968012,1740849766868,-207.27228367,0.00025751,2]
[354968013,1740849766878,-500.0,0.00025751,2]
[354968014,1740849766887,-153.38771633,0.00025751,2]
[354968015,1740849766903,-346.61228367,0.00025751,2]
[354968016,1740849766913,-153.38771633,0.00025751,2]
[354968017,1740849766925,-346.61228367,0.00025751,2]
[354968018,1740849766934,-153.38771633,0.00025751,2]
[354968019,1740849766950,-500.0,0.00025751,2]
[354968020,1740849766962,-500.0,0.00025751,2]
[354968021,1740849766974,-500.0,0.00025751,2]
[354968022,1740849766986,-500.0,0.00025751,2]
[354968023,1740849767001,-500.0,0.00025751,2]
[354968024,1740849767017,-500.0,0.00025751,2]
[354968025,1740849767038,-500.0,0.00025751,2]
[354968026,1740849767050,-322.70228367,0.00025751,2]
[354968027,1740849767059,-473.92771633,0.00025751,2]
[354968028,1740849767071,-452.26228367,0.00025751,2]
[354968029,1740849767082,-58.93884623,0.00025751,2]
[354968030,1740849767098,-441.06115377,0.00025751,2]
[354968031,1740849767107,-58.93884623,0.00025751,2]
[354968032,1740849767119,-500.0,0.00025751,2]
[354968033,1740849767130,-500.0,0.00025751,2]
[354968034,1740849767142,-160.46115377,0.00025751,2]
[354968035,1740849767151,-502.3882834,0.00025751,2]
[354968036,1740849767160,-494.28056283,0.00025751,2]
[354968037,1740849767172,-105.65025515,0.00025751,2]
[354968038,1740849767181,-394.34974485,0.00025751,2]
[354968039,1740849767193,-500.0,0.00025751,2]
[354968040,1740849767208,-529.28,0.00025751,2]
[354968041,1740849767224,-238.21025515,0.00025751,2]
[354968042,1740849767233,-261.78974485,0.00025751,2]
[354968043,1740849767244,-238.21025515,0.00025751,2]
[354968044,1740849767254,-261.78974485,0.00025751,2]
[354968045,1740849767266,-238.21025515,0.00025751,2]
[354968046,1740849767275,-261.78974485,0.00025751,2]
[354968047,1740849767294,-238.21025515,0.00025751,2]
[354968048,1740849767304,-261.78974485,0.00025751,2]
[354968049,1740849767315,-500.0,0.00025751,2]
[354968050,1740849767331,-404.79025515,0.00025751,2]
[354968051,1740849767341,-500.0,0.00025751,2]
[354968052,1740849767351,-100.91974485,0.00025751,2]
[354968053,1740849767363,-399.08025515,0.00025751,2]
[354968054,1740849767372,-1210.55,0.00025751,2]
[354968055,1740849767382,-30.29974485,0.00025751,2]
[354968056,1740849767393,-500.0,0.00025751,2]
[354968057,1740849767405,-477.53025515,0.00025751,2]
[354968058,1740849767416,-22.46974485,0.00025751,2]
[354968059,1740849767433,-477.53025515,0.00025751,2]
[354968060,1740849767442,-22.46974485,0.00025751,2]
[354968061,1740849767455,-463.01058082,0.00025751,2]
[354968062,1740849767464,-36.98941918,0.00025751,2]
[354968063,1740849767480,-463.01058082,0.00025751,2]
[354968064,1740849767489,-36.98941918,0.00025751,2]
[354968065,1740849767505,-463.01058082,0.00025751,2]
[354968066,1740849767515,-36.98941918,0.00025751,2]
[354968067,1740849767527,-463.01058082,0.00025751,2]
[354968068,1740849767538,-36.98941918,0.00025751,2]
[354968069,1740849767554,-467.21504502,0.00025751,2]
[354968070,1740849767564,-36.35652149,0.00025751,2]
[354968071,1740849767576,-463.64347851,0.00025751,2]
[354968072,1740849767586,-143.57652149,0.00025751,2]
[354968073,1740849767602,-357.62790813,0.00025751,2]
[354968074,1740849767611,-142.37209187,0.00025751,2]
[354968075,1740849767623,-357.62790813,0.00025751,2]
[354968076,1740849767633,-142.37209187,0.00025751,2]
[354968077,1740849767650,-357.62790813,0.00025751,2]
[354968078,1740849767660,-142.37209187,0.00025751,2]
[354968079,1740849767671,-500.0,0.00025751,2]
[354968080,1740849767683,-500.0,0.00025751,2]
[354968081,1740849767963,-500.0,0.00025751,2]
[354968082,1740849767980,-500.0,0.00025751,2]
[354968083,1740849767992,-331.78790813,0.00025751,2]
[354968084,1740849768001,-168.21209187,0.00025751,2]
[354968085,1740849768060,-331.78790813,0.00025751,2]
[354968086,1740849768071,-168.21209187,0.00025751,2]
[354968087,1740849768087,-968.5,0.00025751,2]
[354968088,1740849768098,-500.0,0.00025751,2]
[354968089,1740849768114,-500.0,0.00025751,2]
[354968090,1740849768130,-500.0,0.00025751,2]
[354968091,1740849768142,-500.0,0.00025751,2]
[354968092,1740849768162,-500.0,0.00025751,2]
[354968093,1740849768174,-515.7,0.00025751,2]
[354968094,1740849768186,-500.0,0.00025751,2]
[354968095,1740849768198,-1048.54,0.00025751,2]
[354968096,1740849768210,-500.0,0.00025751,2]
[354968097,1740849768227,-598.20576571,0.00025751,2]
[354968098,1740849768259,-500.0,0.00025751,2]
[354968099,1740849768325,-500.0,0.00025751,2]
[354968100,1740849768373,-500.0,0.00025751,2]
[354968101,1740849768386,-738.07,0.00025751,2]
[354968102,1740849768398,-500.0,0.00025751,2]
[354968103,1740849768452,-500.0,0.00025751,2]
[354968104,1740849768503,-905.94,0.00025751,2]
[354968105,1740849768516,-500.0,0.00025751,2]
[354968106,1740849768532,-500.0,0.00025751,2]
[354968107,1740849768543,-500.0,0.00025751,2]
[354968108,1740849768563,-500.0,0.00025751,2]
[354968109,1740849768575,-787.84,0.00025751,2]
[354968110,1740849768587,-138.56214242,0.00025751,2]
[354968111,1740849768597,-361.43785758,0.00025751,2]
[354968112,1740849768610,-138.56214242,0.00025751,2]
[354968113,1740849768620,-361.43785758,0.00025751,2]
[354968114,1740849768636,-138.56214242,0.00025751,2]
[354968115,1740849768647,-907.56785758,0.00025751,2]
[354968116,1740849768659,-500.0,0.00025751,2]
[354968117,1740849768676,-509.55,0.00025751,2]
[354968118,1740849768688,-500.0,0.00025751,2]